bitfinex/quotes_BTCUSD_20250829
["timestamp","ask_amount","ask_price","bid_price","bid_amount"]
[1756474777658,1.45241623,110070.0,110060.0,0.18682906]
[1756474777878,1.28722788,110070.0,110060.0,0.18682906]
[1756474778120,1.24611923,110070.0,110060.0,0.18682906]
[1756474778440,1.24659562,110070.0,110060.0,0.18682906]
[1756474778631,1.24659562,110070.0,110060.0,0.18982906]
[1756474778776,0.01699059,110070.0,110060.0,0.18982906]
[1756474778977,1.24659562,110070.0,110060.0,0.25966906]
[1756474779218,0.01699059,110070.0,110060.0,0.25966906]
[1756474779432,1.24659562,110070.0,110060.0,0.25966906]
[1756474779827,0.01699059,110070.0,110060.0,0.25966906]
[1756474780374,1.24659562,110070.0,110060.0,0.25966906]
[1756474780817,1.24659562,110070.0,110060.0,0.26766906]
[1756474781148,1.24665706,110070.0,110060.0,0.26466906]
[1756474781427,1.24665706,110070.0,110060.0,0.27166906]
[1756474781834,1.24665706,110070.0,110060.0,0.35996538]
[1756474781835,0.01705203,110070.0,110060.0,0.35996538]
[1756474782170,0.01705203,110070.0,110060.0,0.27166906]
[1756474782375,1.24665706,110070.0,110060.0,0.27166906]
[1756474782557,1.24665706,110070.0,110060.0,0.26966906]
[1756474782771,0.01705203,110070.0,110060.0,0.35796538]
[1756474783098,1.24665706,110070.0,110060.0,0.27266906]
[1756474783679,1.44316963,110070.0,110060.0,0.02111]
[1756474783877,1.42835961,110070.0,110060.0,0.20282906]
[1756474784082,1.42835961,110070.0,110060.0,0.02111]
[1756474784285,1.44316963,110070.0,110060.0,0.02111]
[1756474784466,1.83167279,110070.0,110060.0,0.016]
[1756474784664,1.86419376,110070.0,110060.0,0.01]
[1756474784908,0.18173557,110050.0,110040.0,0.06988]
[1756474785107,1.42791624,110050.0,110040.0,0.25674209]
[1756474785306,1.42791624,110050.0,110040.0,0.07499]
[1756474785531,1.44355189,110050.0,110040.0,0.07499]
[1756474785872,1.46985052,110050.0,110040.0,0.07499]
[1756474786507,1.46985052,110050.0,110040.0,0.0719]
[1756474786754,1.46985052,110050.0,110040.0,0.07499]
[1756474786897,0.18175209,110040.0,110030.0,0.0002]
[1756474787110,1.44398132,110040.0,110030.0,0.0002]
[1756474787308,1.47948332,110040.0,110030.0,0.0002]
[1756474787514,0.24987829,110040.0,110030.0,0.0002]
[1756474787714,1.29575123,110040.0,110030.0,0.1839886]
[1756474787927,1.26845646,110040.0,110030.0,0.1870786]
[1756474788175,1.45023816,110040.0,110030.0,0.00222]
[1756474788382,0.22063313,110040.0,110030.0,0.00222]
[1756474788603,1.45023791,110040.0,110030.0,0.1880686]
[1756474788800,1.45023791,110040.0,110030.0,0.0012]
[1756474789006,1.91028385,110040.0,110030.0,0.0052]
[1756474789207,6.91028385,110040.0,110030.0,0.0052]
[1756474789446,0.1817686,110030.0,110020.0,0.00157929]
[1756474789647,6.91291829,110030.0,110020.0,0.00157929]
[1756474789844,0.52178512,110020.0,110010.0,0.0002791]
[1756474790058,6.82079665,110020.0,110010.0,0.0002791]
[1756474790265,6.79608703,110020.0,110010.0,0.0002791]
[1756474790468,6.82284665,110020.0,110010.0,0.0002791]
[1756474790694,6.80538002,110020.0,110010.0,0.0002791]
[1756474790937,6.89415243,110020.0,110010.0,0.0002791]
[1756474791922,6.89415243,110020.0,110010.0,0.0022791]
[1756474792129,6.89415243,110020.0,110010.0,0.00222159]
[1756474792578,6.89515243,110020.0,110010.0,0.00222159]
[1756474793419,6.80685611,110020.0,110010.0,0.00222159]
[1756474793623,6.80691611,110020.0,110010.0,0.00222159]
[1756474793830,6.79557312,110020.0,110010.0,0.00535159]
[1756474794029,1.613788,110020.0,110010.0,0.18715324]
[1756474794211,1.79634608,110020.0,110010.0,0.00635159]
[1756474794417,1.27156096,110020.0,110010.0,0.18815324]
[1756474794635,1.25368631,110020.0,110010.0,0.22885036]
[1756474794831,1.25668631,110020.0,110010.0,0.18815324]
[1756474795043,0.02808128,110020.0,110010.0,0.18815324]
[1756474795489,1.45861334,110020.0,110010.0,0.00327159]
[1756474795693,1.45861334,110020.0,110010.0,0.18507324]
[1756474795694,0.22574105,110020.0,110010.0,0.18507324]
[1756474795888,1.27356096,110020.0,110010.0,0.18815324]
[1756474796095,1.25668631,110020.0,110010.0,0.19015324]
[1756474796695,1.44534608,110020.0,110010.0,0.00735159]
[1756474797036,1.44534608,110020.0,110010.0,0.00422159]
[1756474797164,1.44739608,110020.0,110010.0,0.00422159]
[1756474797364,1.5356924,110020.0,110010.0,0.00422159]
[1756474798130,0.30403737,110020.0,110010.0,0.00422159]
[1756474798422,1.24695577,110020.0,110010.0,0.18807324]
[1756474798720,1.26351021,110020.0,110010.0,0.19115324]
[1756474799023,1.42842068,110020.0,110010.0,0.19115324]
[1756474799241,1.42842068,110020.0,110010.0,0.00935159]
[1756474799671,1.24663556,110020.0,110010.0,0.19115324]
[1756474799872,1.42842068,110020.0,110010.0,0.19115324]
[1756474800220,0.01703053,110020.0,110010.0,0.19115324]
[1756474800429,1.24890282,110020.0,110010.0,0.19115324]
[1756474800672,1.53564165,110020.0,110010.0,0.00422159]
[1756474800880,1.87858165,110020.0,110010.0,0.00422159]
[1756474801082,6.88479285,110020.0,110010.0,0.00422159]
[1756474801311,6.95471505,110020.0,110010.0,0.00422159]
[1756474801843,6.9738025,110020.0,110010.0,0.00422159]
[1756474802047,6.95471505,110020.0,110010.0,0.00422159]
[1756474802418,6.95471505,110020.0,110010.0,0.00022159]
[1756474802419,6.99803117,110020.0,110010.0,0.00022159]
[1756474802612,0.18180165,110010.0,110000.0,0.037]
[1756474802912,6.45146231,110010.0,110000.0,0.037]
[1756474803076,6.45351231,110010.0,110000.0,0.037]
[1756474803697,6.45645231,110010.0,110000.0,0.027]
[1756474804197,6.45146231,110010.0,110000.0,0.02905]
[1756474804401,6.79351231,110010.0,110000.0,0.027]
[1756474804602,6.88180863,110010.0,110000.0,0.028]
[1756474804805,6.79351231,110010.0,110000.0,0.028]
[1756474805009,6.79146231,110010.0,110000.0,0.028]
[1756474805252,1.26966066,110010.0,110000.0,0.21494818]
[1756474805405,0.02276784,110010.0,110000.0,0.21594818]
[1756474805604,0.01655444,110010.0,110000.0,0.3042445]
[1756474805805,0.00147609,110020.0,110010.0,0.18180165]
[1756474806077,1.24768183,110020.0,110010.0,0.18488165]
[1756474806284,1.24768183,110020.0,110010.0,0.18693165]
[1756474806490,1.42946695,110020.0,110010.0,0.00513]
[1756474806688,1.42946695,110020.0,110000.0,0.028]
[1756474806689,0.18180165,110010.0,110000.0,0.028]
[1756474806901,1.44823518,110010.0,110000.0,0.028]
[1756474807136,0.04011536,110010.0,110000.0,0.21794818]
[1756474807316,0.01660071,110010.0,110000.0,0.21694818]
[1756474807541,1.44756244,110010.0,110000.0,0.03513]
[1756474807721,1.53565028,110010.0,110000.0,0.03]
[1756474807932,1.54187786,110010.0,110000.0,0.03]
[1756474808127,1.53982786,110010.0,110000.0,0.03]
[1756474808490,1.54187903,110010.0,110000.0,0.027]
[1756474808698,0.02283824,110010.0,110000.0,0.21394818]
[1756474808909,1.43424492,110010.0,110000.0,0.03213]
[1756474809126,1.25244327,110010.0,110000.0,0.21394818]
[1756474809332,0.01660949,110010.0,110000.0,0.21394818]
[1756474809535,1.24621452,110010.0,110000.0,0.21394818]
[1756474809824,1.24621452,110010.0,110000.0,0.21494818]
[1756474810489,1.43425154,110010.0,110000.0,0.21394818]
[1756474810815,1.43425149,110010.0,110000.0,0.21394818]
[1756474811045,1.43425149,110010.0,110000.0,0.21694818]
[1756474811329,0.02284783,110010.0,110000.0,0.28686818]
[1756474811555,0.01660949,110010.0,110000.0,0.28686818]
[1756474811760,1.42801617,110010.0,110000.0,0.28686818]
[1756474811982,0.01660949,110010.0,110000.0,0.28386818]
[1756474812233,0.01660949,110010.0,110000.0,0.28586818]
[1756474812452,0.01660949,110010.0,110000.0,0.28786818]
[1756474812900,1.42801617,110010.0,110000.0,0.28786818]
[1756474813103,0.01660949,110010.0,110000.0,0.28786818]
[1756474813552,0.01660949,110010.0,110000.0,0.28586818]
[1756474813934,0.01660949,110010.0,110000.0,0.28686818]
[1756474814177,0.01660949,110010.0,110000.0,0.3751645]
[1756474814823,1.24621452,110010.0,110000.0,0.10505]
[1756474814998,1.24621452,110010.0,110000.0,0.28173818]
[1756474815205,1.25247064,110010.0,110000.0,0.28173818]
[1756474815415,0.20466726,110010.0,110000.0,0.10197]
[1756474815625,1.25247064,110010.0,110000.0,0.28173818]
[1756474815857,1.43427229,110010.0,110000.0,0.09992]
[1756474816103,1.43427229,110010.0,110000.0,0.28273818]
[1756474816307,0.20466726,110010.0,110000.0,0.28786818]
[1756474816517,1.43427229,110010.0,110000.0,0.28478818]
[1756474816726,1.43427229,110010.0,110000.0,0.28173818]
[1756474817153,1.43427229,110010.0,110000.0,0.28578818]
[1756474817411,0.02286561,110010.0,110000.0,0.28886818]
[1756474817637,0.02286561,110010.0,110000.0,0.3771645]
[1756474817843,1.45361008,110010.0,110000.0,0.032]
[1756474818071,1.43700764,110010.0,110000.0,0.032]
[1756474818280,1.45165931,110010.0,110000.0,0.21894818]
[1756474818485,1.45165931,110010.0,110000.0,0.03713]
[1756474818486,0.20535261,110010.0,110000.0,0.03713]
[1756474818728,1.45166382,110010.0,110000.0,0.032]
[1756474818925,1.45367382,110010.0,110000.0,0.032]
[1756474819086,1.45660382,110010.0,110000.0,0.032]
[1756474819288,1.45367382,110010.0,110000.0,0.21381818]
[1756474819519,1.45367382,110010.0,110000.0,0.032]
[1756474819716,1.56414902,110010.0,110000.0,0.032]
[1756474820326,1.90414902,110010.0,110000.0,0.032]
[1756474820528,6.90414902,110010.0,110000.0,0.02106857]
[1756474820730,7.05847872,110010.0,110000.0,0.02106857]
[1756474820929,2.6410613,109980.0,109970.0,0.035]
[1756474821158,5.79318434,109980.0,109970.0,0.03069]
[1756474821546,5.58259715,109980.0,109970.0,0.03069]
[1756474821698,6.81220218,109980.0,109970.0,0.03069]
[1756474821913,6.83724605,109980.0,109970.0,0.03069]
[1756474822112,6.81220218,109980.0,109970.0,0.03069]
[1756474822314,5.58307295,109980.0,109970.0,0.03069]
[1756474822516,6.81267798,109980.0,109970.0,0.03069]
[1756474822924,1.29082674,109980.0,109970.0,0.21754778]
[1756474823160,1.46177284,109980.0,109970.0,0.03069]
[1756474823363,5.58305088,109980.0,109970.0,0.03069]
[1756474823636,8.09468587,109980.0,109970.0,0.03069]
[1756474823832,6.83946959,109980.0,109970.0,0.03069]
[1756474824074,6.83946959,109980.0,109970.0,0.03369]
[1756474824075,1.81265591,109980.0,109970.0,0.03369]
[1756474824232,1.81665591,109980.0,109970.0,0.03069]
[1756474824437,1.47665591,109980.0,109970.0,0.03069]
[1756474825036,1.47665591,109980.0,109970.0,0.21754778]
[1756474825037,0.05431288,109980.0,109970.0,0.21754778]
[1756474825225,1.41772353,109980.0,109970.0,0.03568]
[1756474825424,1.41772353,109980.0,109970.0,0.21754778]
[1756474825425,1.41545627,109980.0,109970.0,0.21754778]
[1756474825669,1.41545627,109980.0,109970.0,0.03568]
[1756474825874,1.41845627,109980.0,109970.0,0.29721363]
[1756474826082,0.007,109980.0,109970.0,0.29721363]
[1756474826317,1.23660503,109980.0,109970.0,0.29721363]
[1756474826957,1.41845627,109980.0,109970.0,0.08069]
[1756474827361,6.41845627,109980.0,109970.0,0.08069]
[1756474827567,6.43766826,109980.0,109970.0,0.08069]
[1756474828194,5.20806323,109980.0,109970.0,0.08069]
[1756474828406,6.44500628,109980.0,109970.0,0.08069]
[1756474828863,1.41845627,109980.0,109970.0,0.08268]
[1756474829069,1.41845627,109980.0,109970.0,0.27562078]
[1756474829273,1.23660503,109980.0,109970.0,0.26754778]
[1756474829469,1.41845627,109980.0,109970.0,0.26754778]
[1756474829733,1.41845627,109980.0,109970.0,0.08069]
[1756474829938,1.46421731,109980.0,109970.0,0.08069]
[1756474830160,6.46421731,109980.0,109970.0,0.08069]
[1756474830366,8.14772991,109980.0,109970.0,0.08069]
[1756474831214,6.92747895,109980.0,109970.0,0.08069]
[1756474831460,5.6095776,109980.0,109970.0,0.08069]
[1756474831681,6.78702137,109980.0,109970.0,0.08069]
[1756474831921,6.7776673,109980.0,109970.0,0.08069]
[1756474832802,1.7776673,109980.0,109970.0,0.08369]
[1756474833010,1.7776673,109980.0,109970.0,0.08069]
[1756474833011,1.75845627,109980.0,109970.0,0.08069]
[1756474833430,1.41277703,109980.0,109970.0,0.08069]
[1756474833849,1.43197114,109980.0,109970.0,0.08069]
[1756474834053,7.36805819,109980.0,109970.0,0.08069]
[1756474834261,7.43801819,109980.0,109970.0,0.08069]
[1756474834664,6.5540924,109980.0,109970.0,0.08069]
[1756474834879,7.43801819,109980.0,109970.0,0.08069]
[1756474835089,7.43801819,109980.0,109970.0,1e-08]
[1756474835090,7.52631451,109980.0,109970.0,1e-08]
[1756474835296,0.57402903,109970.0,109960.0,4e-05]
[1756474835502,7.36107472,109970.0,109960.0,4e-05]
[1756474835708,7.36107472,109970.0,109910.0,0.003]
[1756474835709,0.1819505,109920.0,109910.0,0.003]
[1756474835925,0.18193395,109930.0,109910.0,0.18196706]
[1756474835926,0.19103064,109930.0,109910.0,0.18196706]
[1756474836135,0.18193395,109930.0,109920.0,0.00199]
[1756474836359,0.1819505,109920.0,109910.0,0.18496706]
[1756474836549,0.18193395,109930.0,109920.0,0.00499]
[1756474836841,0.1957783,109950.0,109930.0,0.18193395]
[1756474837074,1.06584319,109940.0,109920.0,0.25490905]
[1756474837279,0.20480358,109940.0,109930.0,0.003]
[1756474837500,1.08872937,109940.0,109930.0,0.0004758]
[1756474837756,0.20480358,109940.0,109930.0,0.0054658]
[1756474837969,0.02288618,109940.0,109930.0,0.18739975]
[1756474838181,0.0166445,109940.0,109930.0,0.18739975]
[1756474838616,1.08248769,109940.0,109930.0,0.18739975]
[1756474838828,1.08248769,109940.0,109930.0,0.0054658]
[1756474838829,1.0824804,109940.0,109930.0,0.0054658]
[1756474839033,1.0834804,109940.0,109930.0,0.0054658]
[1756474839239,1.08971914,109940.0,109930.0,0.0064658]
[1756474839457,0.01757695,109940.0,109930.0,0.19067392]
[1756474839669,0.001,109940.0,109930.0,0.27669607]
[1756474840081,0.88492579,109940.0,109930.0,0.18839975]
[1756474840298,1.06584319,109940.0,109930.0,0.0034658]
[1756474840506,1.06584319,109940.0,109930.0,0.18839975]
[1756474840716,1.06584319,109940.0,109930.0,0.0064658]
[1756474840934,1.06584319,109940.0,109930.0,0.0074758]
[1756474840935,1.06885319,109940.0,109930.0,0.0074758]
[1756474841143,1.06885319,109940.0,109930.0,0.0064758]
[1756474841144,0.18915581,109940.0,109930.0,0.0064758]
[1756474841319,5.23120148,109940.0,109930.0,0.0064758]
[1756474841549,6.12344571,109940.0,109930.0,0.0124758]
[1756474841785,6.42734004,109940.0,109930.0,0.0154758]
[1756474841994,6.45295129,109940.0,109930.0,0.0154758]
[1756474842193,6.4170216,109940.0,109930.0,0.0034758]
[1756474842405,6.4170216,109940.0,109930.0,0.0004758]
[1756474842647,6.4140916,109940.0,109930.0,0.0004758]
[1756474843066,1.0730816,109940.0,109930.0,0.0054658]
[1756474843275,1.08139862,109940.0,109930.0,0.0054658]
[1756474843513,1.25435709,109940.0,109930.0,0.18739975]
[1756474843726,0.001,109940.0,109930.0,0.34565607]
[1756474844407,1.42599632,109940.0,109930.0,0.0004758]
[1756474844616,6.43290168,109940.0,109930.0,0.0004758]
[1756474844835,5.53410011,109940.0,109930.0,0.0004758]
[1756474845043,6.77290177,109940.0,109930.0,0.0004758]
[1756474845253,6.76997177,109940.0,109930.0,0.0004758]
[1756474845476,0.53016011,109940.0,109930.0,0.0024658]
[1756474845682,1.77728685,109940.0,109930.0,0.0024658]
[1756474845889,0.53748519,109940.0,109930.0,0.0054658]
[1756474846071,0.19748588,109940.0,109930.0,0.18387392]
[1756474846304,0.00824271,109940.0,109930.0,0.18358975]
[1756474846517,0.002,109940.0,109930.0,0.18358975]
[1756474846705,1.2407414,109940.0,109930.0,0.00199]
[1756474846955,1.42171906,109940.0,109930.0,0.00426417]
[1756474847165,0.18194677,109930.0,109910.0,0.25192584]
[1756474847382,0.1819505,109920.0,109910.0,0.25192584]
[1756474847584,1.42075216,109920.0,109910.0,0.07195]
[1756474847867,1.42074843,109930.0,109910.0,0.25391706]
[1756474848066,1.42075216,109920.0,109910.0,0.07195]
[1756474848497,1.42075216,109920.0,109910.0,0.07395]
[1756474848707,0.00047551,109940.0,109920.0,0.18194009]
[1756474848875,1.76346313,109940.0,109930.0,0.00196]
[1756474849037,1.76346313,109940.0,109910.0,0.37721902]
[1756474849038,0.18193395,109930.0,109910.0,0.37721902]
[1756474849261,0.18193395,109930.0,109920.0,0.1839105]
[1756474849458,1.42073561,109930.0,109920.0,0.1839105]
[1756474849790,0.52239345,109940.0,109920.0,0.00519]
[1756474849962,0.53757416,109940.0,109920.0,0.18713837]
[1756474850157,1.77637582,109940.0,109930.0,0.18193395]
[1756474850425,0.53757416,109940.0,109930.0,0.18389395]
[1756474850618,1.77637582,109940.0,109930.0,0.18389395]
[1756474850865,1.77637582,109940.0,109920.0,0.18494837]
[1756474851088,1.42073561,109930.0,109920.0,0.18494837]
[1756474851285,0.53962416,109940.0,109930.0,0.18193395]
[1756474851286,1.76177092,109940.0,109930.0,0.18193395]
[1756474851492,0.19758147,109940.0,109930.0,0.00519]
[1756474851698,1.45308212,109940.0,109930.0,0.18389395]
[1756474851870,1.27116472,109940.0,109930.0,0.18789395]
[1756474852078,0.21428046,109940.0,109930.0,0.18789395]
[1756474852285,1.27116472,109940.0,109930.0,0.18789395]
[1756474852463,0.03236319,109940.0,109930.0,0.19112395]
[1756474852672,1.44473241,109940.0,109930.0,0.004]
[1756474852891,0.1819505,109920.0,109910.0,0.26425135]
[1756474853132,0.1819505,109920.0,109910.0,0.16021632]
[1756474853273,1.44371368,109920.0,109910.0,0.06996]
[1756474853469,0.20491202,109920.0,109910.0,0.06996]
[1756474853818,1.44371368,109920.0,109910.0,0.06996]
[1756474854347,0.20491202,109920.0,109910.0,0.06996]
[1756474854554,1.44371368,109920.0,109910.0,0.25492706]
[1756474854763,1.44371368,109920.0,109910.0,0.07296]
[1756474854989,1.78889368,109920.0,109910.0,0.07296]
[1756474855422,1.78889368,109920.0,109910.0,0.003]
[1756474855845,0.52196706,109910.0,109900.0,4e-05]
[1756474856052,1.78685914,109910.0,109900.0,4e-05]
[1756474856290,1.79725846,109910.0,109900.0,4e-05]
[1756474856709,1.78890914,109910.0,109900.0,4e-05]
[1756474856948,6.80814588,109910.0,109900.0,4e-05]
[1756474857387,6.80813972,109910.0,109900.0,4e-05]
[1756474858018,6.80813972,109910.0,109900.0,0.00604]
[1756474859118,5.56307613,109910.0,109900.0,0.00204]
[1756474859387,6.9220431,109910.0,109900.0,1e-08]
[1756474859594,6.95411254,109910.0,109900.0,1e-08]
[1756474859817,6.95411254,109910.0,109890.0,0.07596871]
[1756474859818,0.52198362,109900.0,109890.0,0.07596871]
[1756474860032,6.90171334,109900.0,109890.0,0.07596871]
[1756474860246,6.99205966,109900.0,109890.0,0.07596871]
[1756474860677,0.52200018,109890.0,109880.0,4e-05]
[1756474860898,6.81233004,109890.0,109880.0,4e-05]
[1756474861099,6.81798526,109890.0,109880.0,4e-05]
[1756474861306,8.10026008,109890.0,109880.0,4e-05]
[1756474861529,0.52204988,109860.0,109840.0,4e-05]
[1756474861738,0.18433371,109850.0,109840.0,4e-05]
[1756474861951,0.18433371,109850.0,109840.0,0.18535302]
[1756474861952,1.44381818,109850.0,109840.0,0.18535302]
[1756474862162,1.43753617,109850.0,109840.0,0.002]
[1756474862364,0.19873451,109850.0,109840.0,0.18408302]
[1756474862564,0.19873451,109850.0,109840.0,0.18212302]
[1756474862772,0.18208302,109840.0,109830.0,0.23548539]
[1756474862977,1.25546972,109840.0,109830.0,0.24067539]
[1756474863217,1.78270178,109840.0,109830.0,0.05338579]
[1756474863639,6.78894096,109840.0,109830.0,0.05338579]
[1756474863868,6.87723728,109840.0,109830.0,0.05338579]
[1756474864496,6.90284853,109840.0,109830.0,0.05338579]
[1756474864726,6.90284853,109840.0,109830.0,0.05538579]
[1756474864727,6.78894096,109840.0,109830.0,0.05538579]
[1756474864934,6.78891104,109840.0,109830.0,0.05538579]
[1756474865141,5.57572063,109840.0,109830.0,0.05538579]
[1756474865352,5.57572063,109840.0,109820.0,0.00157021]
[1756474865353,0.54771085,109830.0,109820.0,0.00157021]
[1756474865555,5.57055721,109830.0,109820.0,0.00157021]
[1756474865772,5.66403353,109830.0,109820.0,0.00157021]
[1756474865989,6.90283519,109830.0,109820.0,0.00157021]
[1756474866444,6.81453887,109830.0,109820.0,0.00157021]
[1756474866644,6.78579762,109830.0,109820.0,0.00157021]
[1756474866850,6.78892762,109830.0,109820.0,0.00157021]
[1756474867317,6.78374762,109830.0,109820.0,0.00157021]
[1756474867523,1.78892762,109830.0,109820.0,0.00157021]
[1756474867752,6.87722394,109830.0,109820.0,0.00157021]
[1756474867975,6.81421459,109830.0,109820.0,0.00157021]
[1756474868196,0.02284636,109830.0,109820.0,0.1888764]
[1756474868419,0.004,109830.0,109820.0,0.1888764]
[1756474868627,1.24280166,109830.0,109820.0,0.00676021]
[1756474868833,1.42490126,109830.0,109820.0,0.00157021]
[1756474869051,0.004,109830.0,109820.0,0.19115285]
[1756474869263,0.004,109830.0,109820.0,0.1888764]
[1756474869686,0.004,109830.0,109820.0,0.22983603]
[1756474869911,0.004,109830.0,109820.0,0.31813235]
[1756474870111,1.23880166,109840.0,109830.0,0.1820996]
[1756474870341,0.18254307,109850.0,109830.0,0.34562592]
[1756474870543,0.00047492,109850.0,109840.0,0.18531302]
[1756474870745,0.00047492,109850.0,109840.0,0.27456934]
[1756474871369,0.00047492,109850.0,109840.0,0.27356934]
[1756474871625,0.01425149,109880.0,109840.0,0.27356934]
[1756474871626,0.01425149,109880.0,109870.0,0.18203331]
[1756474871799,0.0721143,109890.0,109880.0,0.18201674]
[1756474872004,1.7750317,109900.0,109880.0,0.18201674]
[1756474872208,0.01424642,109900.0,109890.0,0.18200018]
[1756474872420,1.42078528,109900.0,109890.0,0.00196]
[1756474872543,1.42078528,109900.0,109880.0,0.00323]
[1756474872748,1.23880166,109900.0,109890.0,0.18718842]
[1756474872954,1.42078528,109900.0,109890.0,0.00196]
[1756474873166,1.42078528,109900.0,109890.0,0.00210286]
[1756474873437,1.42596528,109900.0,109890.0,0.00014286]
[1756474873646,1.23880166,109900.0,109890.0,0.00014286]
[1756474873859,1.76078528,109900.0,109890.0,0.00210286]
[1756474874147,1.76078528,109900.0,109880.0,0.18201674]
[1756474874404,0.00014246,109900.0,109890.0,0.18946518]
[1756474874685,0.00014246,109900.0,109890.0,0.18919018]
[1756474874897,1.42092774,109900.0,109890.0,0.00496]
[1756474875105,1.42297774,109900.0,109890.0,0.003]
[1756474875306,1.42291746,109900.0,109890.0,0.006]
[1756474875514,1.42604746,109900.0,109890.0,0.006]
[1756474875714,1.42604746,109900.0,109890.0,0.04749945]
[1756474875958,0.1820658,109900.0,109890.0,0.19471013]
[1756474876168,1.42291746,109900.0,109890.0,0.006]
[1756474876371,1.78261643,109900.0,109890.0,0.006]
[1756474876576,1.78261643,109900.0,109890.0,0.00796]
[1756474876577,1.77743643,109900.0,109890.0,0.00796]
[1756474876718,0.5220658,109900.0,109890.0,0.00296]
[1756474876921,0.5220658,109900.0,109890.0,0.01119]
[1756474877143,1.76086746,109900.0,109890.0,0.00696]
[1756474877347,1.80298472,109900.0,109890.0,0.005]
[1756474877549,0.5386404,109900.0,109890.0,0.005]
[1756474877839,1.77949206,109900.0,109890.0,0.005]
[1756474878039,1.78262206,109900.0,109890.0,0.003]
[1756474878240,1.78262206,109900.0,109890.0,0.004]
[1756474878518,0.35665678,109900.0,109890.0,0.19498018]
[1756474878710,0.53864502,109900.0,109890.0,0.00896]
[1756474878876,1.77744668,109900.0,109890.0,0.01198]
[1756474879149,0.0166614,109900.0,109890.0,0.2845515]
[1756474879313,0.0166614,109900.0,109890.0,0.2832765]
[1756474879314,8.218e-05,109900.0,109890.0,0.2832765]
[1756474879511,0.0142449,109930.0,109920.0,0.1819505]
[1756474879706,0.0142449,109930.0,109920.0,0.1870405]
[1756474879912,0.00057635,109940.0,109920.0,0.1870405]
[1756474880091,0.00057635,109940.0,109930.0,0.18722812]
[1756474880295,0.2682958,109990.0,109960.0,0.18187077]
[1756474880491,0.2682958,109990.0,109960.0,0.07302]
[1756474880492,0.18185124,109980.0,109960.0,0.07302]
[1756474880744,0.00829987,109980.0,109970.0,0.18488778]
[1756474880864,0.19607557,109990.0,109980.0,0.00207]
[1756474880865,0.18183661,109990.0,109980.0,0.00207]
[1756474881067,0.00830138,109990.0,109980.0,0.18619438]
[1756474881321,0.18184932,110000.0,109980.0,0.18185103]
[1756474881529,1.2470959,110000.0,109990.0,0.18183471]
[1756474881925,1.2470959,110000.0,109980.0,0.18185103]
[1756474881926,1.42891408,110000.0,109980.0,0.18185103]
[1756474882132,1.42891527,110000.0,109980.0,0.18185103]
[1756474882359,0.18183471,109990.0,109970.0,0.18186778]
[1756474882514,1.24406892,109980.0,109970.0,0.18186778]
[1756474882718,0.18185124,109980.0,109960.0,0.26497756]
[1756474882938,1.42066944,109970.0,109960.0,0.074]
[1756474883275,0.18186778,109970.0,109960.0,0.07207]
[1756474883480,0.34,110000.0,109980.0,0.001]
[1756474883696,1.42801363,109990.0,109980.0,0.001]
[1756474883818,1.42574637,109990.0,109980.0,0.001]
[1756474884023,1.76574637,109990.0,109980.0,0.001]
[1756474884231,0.53521939,109990.0,109980.0,0.001]
[1756474884438,0.18186778,109970.0,109960.0,0.071]
[1756474884676,1.76066944,109970.0,109960.0,0.071]
[1756474884850,1.7662576,109970.0,109960.0,0.001]
[1756474885055,0.18189248,109960.0,109940.0,0.26101267]
[1756474885232,0.18189248,109960.0,109950.0,0.00434376]
[1756474885446,0.18190086,109950.0,109940.0,0.07]
[1756474885677,1.42070252,109950.0,109940.0,0.07]
[1756474886025,0.18190086,109950.0,109940.0,0.2609874]
[1756474886236,0.18190086,109950.0,109940.0,0.077]
[1756474886447,1.42581252,109950.0,109940.0,0.07]
[1756474886659,0.18701086,109950.0,109940.0,0.07]
[1756474886829,0.18189094,109960.0,109940.0,0.18626136]
[1756474887030,0.18190086,109950.0,109930.0,0.18193285]
[1756474887235,0.18190086,109950.0,109940.0,0.00207]
[1756474887449,0.18290086,109950.0,109930.0,0.27022917]
[1756474887659,0.18290086,109950.0,109940.0,0.1819174]
[1756474887865,0.18290086,109950.0,109930.0,0.27022917]
[1756474888067,0.18290086,109950.0,109940.0,0.003]
[1756474888272,0.18290086,109950.0,109940.0,0.005]
[1756474888817,0.18190086,109950.0,109940.0,0.1869874]
[1756474889242,0.18190086,109950.0,109940.0,0.1849174]
[1756474889440,0.18190086,109950.0,109940.0,0.1869874]
[1756474890089,0.18189094,109960.0,109940.0,0.1839874]
[1756474890297,0.00047816,109970.0,109960.0,0.18188432]
[1756474890519,0.18234594,109970.0,109960.0,0.18395432]
[1756474890752,0.18188432,109960.0,109950.0,0.16127632]
[1756474890981,0.18188432,109960.0,109950.0,0.06996]
[1756474891213,1.42579598,109960.0,109950.0,0.06996]
[1756474891419,0.18188432,109960.0,109950.0,0.07203]
[1756474891590,1.42579598,109960.0,109950.0,0.06996]
[1756474891810,0.18190086,109950.0,109940.0,0.007]
[1756474892013,1.42370252,109950.0,109940.0,0.002]
[1756474892149,0.18190086,109950.0,109940.0,0.002]
[1756474892351,0.1819174,109940.0,109930.0,0.25189395]
[1756474892573,0.18190086,109950.0,109940.0,0.1819174]
[1756474892771,0.53443932,109970.0,109950.0,0.18190086]
[1756474892772,1.43024098,109970.0,109950.0,0.18190086]
[1756474892987,0.18188432,109960.0,109940.0,0.27323372]
[1756474893187,0.18188432,109960.0,109950.0,0.18417462]
[1756474893401,0.18188432,109960.0,109940.0,0.27323372]
[1756474893402,0.18188432,109960.0,109940.0,0.27021372]
[1756474893613,0.18190086,109950.0,109940.0,0.08829632]
[1756474893782,0.1819174,109940.0,109930.0,0.25189395]
[1756474893985,0.18190086,109950.0,109940.0,0.1819174]
[1756474894231,0.18190086,109950.0,109940.0,0.1839874]
[1756474894643,1.42978019,109960.0,109940.0,0.1839874]
[1756474894845,0.18188432,109960.0,109950.0,0.18190086]
[1756474895146,0.18190086,109950.0,109940.0,0.1819174]
[1756474895361,0.18188432,109960.0,109950.0,0.18190086]
[1756474895731,0.18190086,109950.0,109940.0,0.27423372]
[1756474895934,1.42068598,109960.0,109940.0,0.27328372]
[1756474896138,0.18190086,109950.0,109940.0,0.27021372]
[1756474896507,0.18190086,109950.0,109940.0,0.27428372]
[1756474896870,1.42068598,109960.0,109950.0,0.18190086]
[1756474897005,0.18188432,109960.0,109940.0,0.27321372]
[1756474897506,0.18190086,109950.0,109940.0,0.27321372]
[1756474897697,1.42070252,109950.0,109940.0,0.003]
[1756474897852,1.42070252,109950.0,109940.0,0.1899174]
[1756474898063,0.18190086,109950.0,109940.0,0.1889874]
[1756474898493,0.18188432,109960.0,109940.0,0.1919874]
[1756474898693,0.18188432,109960.0,109950.0,0.18417462]
[1756474898908,0.18188432,109960.0,109940.0,0.28123372]